fUST/lending_fUST_20250902
["ID","MTS","AMOUNT","RATE_DAILY","PERIOD"]
[382835942,1756752655076,-151.0,0.00014246,2]
[382835944,1756752655085,-151.0,0.00014246,2]
[382835946,1756752655094,-151.0,0.00014246,2]
[382835948,1756752655103,-151.0,0.00014246,2]
[382835950,1756752655112,-151.0,0.00014246,2]
[382835952,1756752655122,-151.0,0.00014246,2]
[382835954,1756752655132,-151.24450365,0.00014246,2]
[382835956,1756752655141,-151.0,0.00014246,2]
[382835958,1756752655150,-480.0,0.00014246,2]
[382835960,1756752655160,-480.0,0.00014246,2]
[382835962,1756752655169,-624.23,0.00014246,2]
[382835964,1756752655178,-505.72,0.00014246,2]
[382835966,1756752655188,-480.0,0.00014246,2]
[382835982,1756752655197,-545.87579054,0.00014246,2]
[382835984,1756752655336,-480.34,0.00014246,2]
[382835987,1756752655346,-480.0,0.00014246,2]
[382835989,1756752655355,-197.6,0.00014246,2]
[382835990,1756752655365,-480.0,0.00014246,2]
[382835993,1756752655374,-483.6,0.00014246,2]
[382835995,1756752655383,-562.48,0.00014246,2]
[382835997,1756752655393,-613.13,0.00014246,2]
[382835999,1756752655402,-480.0,0.00014246,2]
[382836001,1756752655411,-243.18474352,0.00014246,2]
[382836003,1756752655421,-492.62,0.00014246,2]
[382836004,1756752655431,-587.94,0.00014246,2]
[382836007,1756752655440,-480.0,0.00014246,2]
[382836008,1756752655450,-480.0,0.00014246,2]
[382836010,1756752655459,-480.0,0.00014246,2]
[382836013,1756752655469,-480.0,0.00014246,2]
[382836014,1756752655478,-592.4,0.00014246,2]
[382836017,1756752655488,-623.59,0.00014246,2]
[382836018,1756752655498,-151.0,0.00014246,2]
[382836020,1756752655507,-480.0,0.00014246,2]
[382836022,1756752655516,-480.0,0.00014246,2]
[382836025,1756752655526,-503.19,0.00014246,2]
[382836026,1756752655535,-480.0,0.00014246,2]
[382836028,1756752655544,-480.0,0.00014246,2]
[382836030,1756752655553,-544.3,0.00014246,2]
[382836032,1756752655566,-548.99,0.00014246,2]
[382836034,1756752655576,-480.0,0.00014246,2]
[382836036,1756752655585,-480.0,0.00014246,2]
[382836038,1756752655594,-480.0,0.00014246,2]
[382836040,1756752655605,-480.0,0.00014246,2]
[382836042,1756752655614,-700.63,0.00014246,2]
[382836044,1756752655624,-480.0,0.00014246,2]
[382836046,1756752655633,-640.83,0.00014246,2]
[382836048,1756752655642,-236.44,0.00014246,2]
[382836050,1756752655656,-480.0,0.00014246,2]
[382836052,1756752655665,-579.17,0.00014246,2]
[382836054,1756752655674,-508.51,0.00014246,2]
[382836056,1756752655684,-480.0,0.00014246,2]
[382836058,1756752655694,-480.0,0.00014246,2]
[382836060,1756752655703,-597.73,0.00014246,2]
[382836062,1756752655712,-480.0,0.00014246,2]
[382836065,1756752655724,-668.88,0.00014246,2]
[382836067,1756752655734,-688.87,0.00014246,2]
[382836069,1756752655743,-480.0,0.00014246,2]
[382836071,1756752655752,-273.58,0.00014246,2]
[382836073,1756752655762,-480.0,0.00014246,2]
[382836075,1756752655770,-620.5,0.00014246,2]
[382836076,1756752655780,-407.14,0.00014246,2]
[382836079,1756752655791,-548.87,0.00014246,2]
[382836081,1756752655801,-480.0,0.00014246,2]
[382836083,1756752655811,-480.0,0.00014246,2]
[382836085,1756752655821,-480.0,0.00014246,2]
[382836087,1756752655830,-317.47,0.00014246,2]
[382836089,1756752655839,-480.0,0.00014246,2]
[382836091,1756752655849,-480.0,0.00014246,2]
[382836093,1756752655859,-160.24,0.00014246,2]
[382836095,1756752655868,-667.0,0.00014246,2]
[382836097,1756752655877,-262.86,0.00014246,2]
[382836099,1756752655887,-480.0,0.00014246,2]
[382836101,1756752655896,-480.0,0.00014246,2]
[382836103,1756752655906,-151.0,0.00014246,2]
[382836105,1756752655915,-151.0,0.00014246,2]
[382836107,1756752655925,-151.0,0.00014246,2]
[382836109,1756752655934,-151.0,0.00014246,2]
[382836111,1756752655943,-500.0,0.00014246,2]
[382836113,1756752655952,-151.0,0.00014246,2]
[382836115,1756752655961,-480.0,0.00014246,2]
[382836116,1756752655971,-233.0,0.00014246,2]
[382836119,1756752655981,-480.0,0.00014246,2]
[382836120,1756752655990,-615.05,0.00014246,2]
[382836122,1756752655999,-753.09,0.00014246,2]
[382836124,1756752656008,-480.0,0.00014246,2]
[382836126,1756752656018,-215.28,0.00014246,2]
[382836128,1756752656028,-2266.56,0.00014246,2]
[382836131,1756752656037,-480.0,0.00014246,2]
[382836132,1756752656046,-554.44,0.00014246,2]
[382836134,1756752656055,-920.79,0.00014246,2]
[382836137,1756752656065,-533.96,0.00014246,2]
[382836139,1756752656075,-211.62,0.00014246,2]
[382836141,1756752656084,-694.03,0.00014246,2]
[382836143,1756752656093,-564.46,0.00014246,2]
[382836145,1756752656102,-151.0,0.00014246,2]
[382836147,1756752656111,-500.0,0.00014246,2]
[382836149,1756752656120,-151.56942026,0.00014246,2]
[382836151,1756752656130,-151.0,0.00014246,2]
[382836153,1756752656139,-571.78,0.00014246,2]
[382836154,1756752656149,-151.0,0.00014246,2]
[382836157,1756752656160,-151.0,0.00014246,2]
[382836159,1756752656171,-3115.4,0.00014246,2]
[382836161,1756752656181,-151.0,0.00014246,2]
[382836163,1756752656190,-480.0,0.00014246,2]
[382836165,1756752656199,-480.0,0.00014246,2]
[382836167,1756752656208,-151.0,0.00014246,2]
[382836168,1756752656218,-690.0,0.00014246,2]
[382836171,1756752656227,-480.0,0.00014246,2]
[382836173,1756752656240,-480.0,0.00014246,2]
[382836175,1756752656250,-1162.68,0.00014246,2]
[382836177,1756752656259,-571.48,0.00014246,2]
[382836179,1756752656269,-480.0,0.00014246,2]
[382836181,1756752656278,-163.28,0.00014246,2]
[382836183,1756752656287,-480.0,0.00014246,2]
[382836185,1756752656296,-1242.4,0.00014246,2]
[382836187,1756752656305,-336.19,0.00014246,2]
[382836189,1756752656314,-480.0,0.00014246,2]
[382836191,1756752656324,-480.0,0.00014246,2]
[382836193,1756752656333,-480.0,0.00014246,2]
[382836195,1756752656342,-480.0,0.00014246,2]
[382836197,1756752656351,-616.55,0.00014246,2]
[382836199,1756752656360,-599.05,0.00014246,2]
[382836201,1756752656369,-480.0,0.00014246,2]
[382836203,1756752656378,-178.56,0.00014246,2]
[382836205,1756752656388,-480.0,0.00014246,2]
[382836207,1756752656399,-738.71,0.00014246,2]
[382836209,1756752656408,-1484.02,0.00014246,2]
[382836211,1756752656419,-480.0,0.00014246,2]
[382836212,1756752656428,-594.72,0.00014246,2]
[382836214,1756752656439,-480.0,0.00014246,2]
[382836216,1756752656449,-497.25,0.00014246,2]
[382836219,1756752656459,-5123.42,0.00014246,2]
[382836221,1756752656469,-1779.12,0.00014246,2]
[382836223,1756752656478,-480.0,0.00014246,2]
[382836225,1756752656488,-480.0,0.00014246,2]
[382836226,1756752656498,-409.78,0.00014246,2]
[382836229,1756752656507,-480.0,0.00014246,2]
[382836231,1756752656517,-480.0,0.00014246,2]
[382836232,1756752656527,-480.0,0.00014246,2]
[382836234,1756752656536,-480.0,0.00014246,2]
[382836236,1756752656545,-480.0,0.00014246,2]
[382836238,1756752656555,-682.83,0.00014246,2]
[382836240,1756752656565,-598.22,0.00014246,2]
[382836242,1756752656574,-626.08,0.00014246,2]
[382836244,1756752656583,-480.0,0.00014246,2]
[382836246,1756752656592,-307.64,0.00014246,2]
[382836248,1756752656601,-480.0,0.00014246,2]
[382836250,1756752656610,-480.0,0.00014246,2]
[382836252,1756752656620,-480.0,0.00014246,2]
[382836254,1756752656629,-626.41,0.00014246,2]
[382836256,1756752656638,-1236.9,0.00014246,2]
[382836258,1756752656649,-480.0,0.00014246,2]
[382836260,1756752656658,-685.05,0.00014246,2]
[382836263,1756752656671,-207.8,0.00014246,2]
[382836265,1756752656687,-480.0,0.00014246,2]
[382836268,1756752656701,-480.0,0.00014246,2]
[382836270,1756752656712,-480.0,0.00014246,2]
[382836273,1756752656726,-480.0,0.00014246,2]
[382836275,1756752656741,-556.94,0.00014246,2]
[382836278,1756752656755,-480.0,0.00014246,2]
[382836280,1756752656769,-480.0,0.00014246,2]
[382836283,1756752656782,-176.33,0.00014246,2]
[382836285,1756752656797,-480.0,0.00014246,2]
[382836288,1756752656811,-631.68,0.00014246,2]
[382836290,1756752656824,-480.0,0.00014246,2]
[382836292,1756752656837,-480.0,0.00014246,2]
[382836295,1756752656850,-480.0,0.00014246,2]
[382836297,1756752656863,-750.73,0.00014246,2]
[382836300,1756752656877,-480.0,0.00014246,2]
[382836302,1756752656890,-480.0,0.00014246,2]
[382836304,1756752656902,-819.12,0.00014246,2]
[382836307,1756752656913,-3211.07,0.00014246,2]
[382836309,1756752656926,-480.0,0.00014246,2]
[382836311,1756752656939,-480.0,0.00014246,2]
[382836314,1756752656952,-491.99,0.00014246,2]
[382836316,1756752656967,-1086.27,0.00014246,2]
[382836319,1756752656982,-480.0,0.00014246,2]
[382836321,1756752656996,-480.0,0.00014246,2]
[382836324,1756752657009,-480.0,0.00014246,2]
[382836326,1756752657021,-2100.38,0.00014246,2]
[382836328,1756752657032,-1577.9,0.00014246,2]
[382836330,1756752657042,-480.0,0.00014246,2]
[382836333,1756752657055,-1542.28,0.00014246,2]
[382836336,1756752657070,-480.0,0.00014246,2]
[382836338,1756752657083,-480.0,0.00014246,2]
[382836340,1756752657094,-576.44,0.00014246,2]
[382836342,1756752657106,-480.0,0.00014246,2]
[382836345,1756752657119,-480.0,0.00014246,2]
[382836347,1756752657132,-480.0,0.00014246,2]
[382836349,1756752657142,-151.0,0.00014246,2]
[382836351,1756752657153,-480.0,0.00014246,2]
[382836354,1756752657165,-151.0,0.00014246,2]
[382836356,1756752657177,-151.0,0.00014246,2]
[382836358,1756752657188,-151.0,0.00014246,2]
[382836361,1756752657200,-525.33,0.00014246,2]
[382836363,1756752657212,-377.94526038,0.00014246,2]
[382836365,1756752657223,-500.0,0.00014246,2]
[382836367,1756752657235,-500.0,0.00014246,2]
[382836370,1756752657247,-151.0,0.00014246,2]
[382836372,1756752657259,-480.0,0.00014246,2]
[382836374,1756752657271,-633.39,0.00014246,2]
[382836376,1756752657283,-490.33,0.00014246,2]
[382836379,1756752657294,-480.0,0.00014246,2]
[382836381,1756752657306,-773.53,0.00014246,2]
[382836383,1756752657317,-480.0,0.00014246,2]
[382836385,1756752657329,-1971.19,0.00014246,2]
[382836388,1756752657340,-311.64,0.00014246,2]
[382836390,1756752657351,-480.0,0.00014246,2]
[382836392,1756752657363,-480.0,0.00014246,2]
[382836394,1756752657374,-613.24,0.00014246,2]
[382836397,1756752657386,-562.49,0.00014246,2]
[382836399,1756752657397,-304.36,0.00014246,2]
[382836401,1756752657408,-480.0,0.00014246,2]
[382836403,1756752657419,-942.08,0.00014246,2]
[382836405,1756752657431,-609.01,0.00014246,2]
[382836408,1756752657443,-480.0,0.00014246,2]
[382836410,1756752657454,-150000.0,0.00014246,2]
[382836412,1756752657467,-103665.79931742,0.00014246,2]
[382836414,1756752657480,-168.0,0.00014266,2]
[382836417,1756752657491,-500.0,0.00014273,2]
[382836419,1756752657503,-500.0,0.00014273,2]
[382836421,1756752657514,-500.0,0.00014273,2]
[382836424,1756752657526,-500.0,0.00014273,2]
[382836426,1756752657537,-500.0,0.00014273,2]
[382836428,1756752657548,-500.28018904,0.00014273,2]
[382836430,1756752657559,-500.0,0.00014273,2]
[382836432,1756752657571,-500.0,0.00014273,2]
[382836435,1756752657583,-500.0,0.00014273,2]
[382836437,1756752657595,-500.0,0.00014273,2]
[382836439,1756752657607,-527.3298159,0.00014273,2]
[382836441,1756752657618,-500.0,0.00014273,2]
[382836443,1756752657630,-199.64761663,0.00014273,2]
[382836446,1756752657641,-500.0,0.00014273,2]
[382836448,1756752657658,-500.0,0.00014273,2]
[382836450,1756752657670,-500.0,0.00014273,2]
[382836452,1756752657682,-500.0,0.00014273,2]
[382836454,1756752657694,-492.53886774,0.00014273,2]
[382836457,1756752657706,-500.0,0.00014273,2]
[382836459,1756752657717,-168.0,0.00014298,2]
[382836461,1756752657729,-168.0,0.0001431,2]
[382836463,1756752657741,-168.0,0.00014361,2]
[382836465,1756752657752,-168.0,0.00014365,2]
[382836468,1756752657764,-168.0,0.00014422,2]
[382836470,1756752657777,-168.0,0.00014427,2]
[382836472,1756752657789,-168.0,0.00014437,2]
[382836475,1756752657800,-151.0,0.0001452,2]
[382836477,1756752657811,-151.0,0.0001452,2]
[382836479,1756752657824,-151.0,0.0001452,2]
[382836481,1756752657836,-151.0,0.0001452,2]
[382836484,1756752657847,-151.0,0.0001452,2]
[382836486,1756752657858,-151.0,0.0001452,2]
[382836488,1756752657870,-151.0,0.0001452,2]
[382836490,1756752657881,-151.0,0.0001452,2]
[382836493,1756752657893,-151.0,0.0001452,2]
[382836495,1756752657905,-151.0,0.0001452,2]
[382836497,1756752657916,-500.50465392,0.0001452,2]
[382836499,1756752657928,-152.78191047,0.0001452,2]
[382836502,1756752657939,-151.0,0.0001452,2]
[382836504,1756752657951,-610.63318186,0.0001452,2]
[382836506,1756752657963,-151.0,0.0001452,2]
[382836508,1756752657974,-151.21069855,0.0001452,2]
[382836511,1756752657986,-151.12725769,0.0001452,2]
[382836513,1756752657997,-151.0,0.0001452,2]
[382836515,1756752658009,-151.18070259,0.0001452,2]
[382836517,1756752658020,-690.0,0.0001452,2]
[382836520,1756752658031,-151.0,0.0001452,2]
[382836522,1756752658042,-151.16631186,0.0001452,2]
[382836524,1756752658054,-151.0,0.0001452,2]
[382836526,1756752658065,-500.0,0.0001452,2]
[382836528,1756752658077,-500.0,0.0001452,2]
[382836531,1756752658088,-480.0,0.0001452,2]
[382836533,1756752658100,-480.0,0.0001452,2]
[382836535,1756752658112,-509.36,0.0001452,2]
[382836537,1756752658123,-1417.58,0.0001452,2]
[382836540,1756752658135,-480.0,0.0001452,2]
[382836542,1756752658147,-489.52031729,0.0001452,2]
[382836544,1756752658158,-480.0,0.0001452,2]
[382836546,1756752658169,-480.0,0.0001452,2]
[382836549,1756752658181,-480.0,0.0001452,2]
[382836551,1756752658192,-480.0,0.0001452,2]
[382836553,1756752658204,-480.0,0.0001452,2]
[382836555,1756752658216,-556.68,0.0001452,2]
[382836557,1756752658227,-480.0,0.0001452,2]
[382836560,1756752658239,-480.0,0.0001452,2]
[382836562,1756752658251,-624.23,0.0001452,2]
[382836564,1756752658263,-505.72,0.0001452,2]
[382836566,1756752658275,-480.0,0.0001452,2]
[382836569,1756752658286,-480.34,0.0001452,2]
[382836571,1756752658298,-480.0,0.0001452,2]
[382836573,1756752658309,-480.0,0.0001452,2]
[382836576,1756752658321,-483.6,0.0001452,2]
[382836599,1756752658524,-562.48,0.0001452,2]
[382836602,1756752658546,-613.13,0.0001452,2]
[382836605,1756752658560,-480.0,0.0001452,2]
[382836607,1756752658570,-492.62,0.0001452,2]
[382836609,1756752658579,-348.01922321,0.0001452,2]
[382836611,1756752658588,-503.73958412,0.0001452,2]
[382836613,1756752658598,-480.0,0.0001452,2]
[382836615,1756752658607,-480.0,0.0001452,2]
[382836617,1756752658616,-592.4,0.0001452,2]
[382836619,1756752658625,-480.0,0.0001452,2]
[382836621,1756752658634,-480.0,0.0001452,2]
[382836623,1756752658643,-503.19,0.0001452,2]
[382836625,1756752658657,-480.0,0.0001452,2]
[382836627,1756752658666,-392.9656838,0.0001452,2]
[382836629,1756752658675,-548.99,0.0001452,2]
[382836631,1756752658684,-480.0,0.0001452,2]
[382836633,1756752658693,-480.0,0.0001452,2]
[382836635,1756752658703,-480.0,0.0001452,2]
[382836637,1756752658712,-480.0,0.0001452,2]
[382836639,1756752658721,-700.63,0.0001452,2]
[382836641,1756752658730,-480.0,0.0001452,2]
[382836643,1756752658740,-640.83,0.0001452,2]
[382836645,1756752658750,-159.72332782,0.0001452,2]
[382836647,1756752658759,-579.17,0.0001452,2]
[382836649,1756752658769,-508.51,0.0001452,2]
[382836651,1756752658778,-480.0,0.0001452,2]
[382836653,1756752658787,-480.0,0.0001452,2]
[382836655,1756752658796,-597.73,0.0001452,2]
[382836657,1756752658806,-480.0,0.0001452,2]
[382836659,1756752658815,-668.88,0.0001452,2]
[382836661,1756752658825,-688.87,0.0001452,2]
[382836663,1756752658835,-480.0,0.0001452,2]
[382836665,1756752658844,-480.0,0.0001452,2]
[382836667,1756752658853,-548.87,0.0001452,2]
[382836669,1756752658863,-601.02813001,0.0001452,2]
[382836671,1756752658873,-330.05,0.0001452,2]
[382836673,1756752658882,-480.0,0.0001452,2]
[382836675,1756752658891,-480.0,0.0001452,2]
[382836677,1756752658901,-480.0,0.0001452,2]
[382836679,1756752658911,-667.0,0.0001452,2]
[382836681,1756752658920,-480.0,0.0001452,2]
[382836683,1756752658929,-480.0,0.0001452,2]
[382836685,1756752658938,-480.0,0.0001452,2]
[382836687,1756752658949,-480.0,0.0001452,2]
[382836689,1756752658958,-615.05,0.0001452,2]
[382836691,1756752658968,-753.09,0.0001452,2]
[382836693,1756752658977,-480.0,0.0001452,2]
[382836695,1756752658987,-2266.56,0.0001452,2]
[382836697,1756752658997,-480.0,0.0001452,2]
[382836698,1756752659006,-920.79,0.0001452,2]
[382836699,1756752659015,-694.03,0.0001452,2]
[382836700,1756752659023,-564.46,0.0001452,2]
[382836701,1756752659032,-3115.4,0.0001452,2]
[382836702,1756752659041,-480.0,0.0001452,2]
[382836703,1756752659050,-244.94,0.0001452,2]
[382836704,1756752659059,-480.0,0.0001452,2]
[382836705,1756752659068,-480.0,0.0001452,2]
[382836706,1756752659077,-1162.68,0.0001452,2]
[382836707,1756752659086,-571.48,0.0001452,2]
[382836708,1756752659095,-480.0,0.0001452,2]
[382836709,1756752659103,-480.0,0.0001452,2]
[382836710,1756752659112,-1242.4,0.0001452,2]
[382836711,1756752659121,-298.96,0.0001452,2]
[382836713,1756752659131,-480.0,0.0001452,2]
[382836714,1756752659141,-480.0,0.0001452,2]
[382836716,1756752659150,-480.0,0.0001452,2]
[382836718,1756752659160,-616.55,0.0001452,2]
[382836720,1756752659169,-599.05,0.0001452,2]
[382836722,1756752659179,-480.0,0.0001452,2]
[382836724,1756752659189,-480.0,0.0001452,2]
[382836726,1756752659199,-738.71,0.0001452,2]
[382836728,1756752659208,-1484.02,0.0001452,2]
[382836730,1756752659217,-480.0,0.0001452,2]
[382836732,1756752659227,-594.72,0.0001452,2]
[382836734,1756752659236,-480.0,0.0001452,2]
[382836736,1756752659245,-497.25,0.0001452,2]
[382836738,1756752659255,-5123.42,0.0001452,2]
[382836740,1756752659264,-1779.12,0.0001452,2]
[382836742,1756752659274,-480.0,0.0001452,2]
[382836744,1756752659283,-480.0,0.0001452,2]
[382836746,1756752659292,-482.36,0.0001452,2]
[382836748,1756752659301,-166.84,0.0001452,2]
[382836750,1756752659310,-154.88,0.0001452,2]
[382836752,1756752659319,-480.0,0.0001452,2]
[382836754,1756752659328,-362.43040813,0.0001452,2]
[382836756,1756752659337,-682.83,0.0001452,2]
[382836757,1756752659346,-626.08,0.0001452,2]
[382836759,1756752659356,-480.0,0.0001452,2]
[382836762,1756752659366,-480.0,0.0001452,2]
[382836763,1756752659375,-332.26,0.0001452,2]
[382836765,1756752659384,-480.0,0.0001452,2]
[382836767,1756752659393,-626.41,0.0001452,2]
[382836769,1756752659403,-1236.9,0.0001452,2]
[382836771,1756752659412,-480.0,0.0001452,2]
[382836773,1756752659421,-685.05,0.0001452,2]
[382836775,1756752659430,-480.0,0.0001452,2]
[382836777,1756752659439,-477.62,0.0001452,2]
[382836779,1756752659448,-480.0,0.0001452,2]
[382836781,1756752659458,-556.94,0.0001452,2]
[382836783,1756752659467,-480.0,0.0001452,2]
[382836785,1756752659476,-480.0,0.0001452,2]
[382836787,1756752659486,-631.68,0.0001452,2]
[382836789,1756752659495,-480.0,0.0001452,2]
[382836791,1756752659504,-480.0,0.0001452,2]
[382836793,1756752659514,-750.73,0.0001452,2]
[382836795,1756752659523,-480.0,0.0001452,2]
[382836797,1756752659536,-157.34,0.0001452,2]
[382836799,1756752659545,-819.12,0.0001452,2]
[382836801,1756752659555,-3211.07,0.0001452,2]
[382836803,1756752659565,-480.0,0.0001452,2]
[382836805,1756752659574,-480.0,0.0001452,2]
[382836807,1756752659583,-491.99,0.0001452,2]
[382836809,1756752659592,-1086.27,0.0001452,2]
[382836811,1756752659601,-480.0,0.0001452,2]
[382836813,1756752659611,-480.0,0.0001452,2]
[382836814,1756752659620,-480.0,0.0001452,2]
[382836816,1756752659630,-2100.38,0.0001452,2]
[382836818,1756752659639,-1577.9,0.0001452,2]
[382836820,1756752659651,-480.0,0.0001452,2]
[382836822,1756752659660,-1542.28,0.0001452,2]
[382836824,1756752659670,-410.38413575,0.0001452,2]
[382836826,1756752659679,-576.44,0.0001452,2]
[382836828,1756752659689,-480.0,0.0001452,2]
[382836830,1756752659699,-480.0,0.0001452,2]
[382836832,1756752659708,-480.0,0.0001452,2]
[382836834,1756752659717,-480.0,0.0001452,2]
[382836836,1756752659728,-480.0,0.0001452,2]
[382836838,1756752659737,-633.39,0.0001452,2]
[382836840,1756752659747,-525.33,0.0001452,2]
[382836841,1756752659757,-490.33,0.0001452,2]
[382836843,1756752659766,-480.0,0.0001452,2]
[382836845,1756752659775,-773.53,0.0001452,2]
[382836847,1756752659784,-1971.19,0.0001452,2]
[382836849,1756752659794,-480.0,0.0001452,2]
[382836851,1756752659803,-613.24,0.0001452,2]
[382836853,1756752659813,-562.49,0.0001452,2]
[382836855,1756752659824,-480.0,0.0001452,2]
[382836857,1756752659833,-942.08,0.0001452,2]
[382836859,1756752659842,-609.01,0.0001452,2]
[382836861,1756752659851,-421.65023302,0.0001452,2]
[382836863,1756752659861,-83137.34205292,0.00014557,2]
[382836865,1756752659870,-151.0,0.000146,2]
[382836867,1756752659879,-246.0,0.00014629,2]
[382836869,1756752659889,-1680.0,0.00014685,2]
[382836871,1756752659898,-420.0,0.00014685,2]
[382836873,1756752659907,-151.0,0.00014686,2]
[382836875,1756752659916,-16678.90447528,0.00014694,2]
[382836877,1756752659926,-153.525751,0.000147,3]
[382836879,1756752659935,-153.224876,0.000147,3]
[382836881,1756752659945,-764.97518271,0.0001471,2]
[382836883,1756752659954,-500.0,0.0001471,2]
[382836885,1756752659964,-1000.0,0.0001471,2]
[382836887,1756752659974,-406.16681845,0.00014713,2]
[382836889,1756752659983,-1000.0,0.00014713,2]
[382836891,1756752659993,-1680.0,0.00014736,2]
[382836892,1756752660002,-1000.0,0.00014754,2]
[382836895,1756752660012,-1500.0,0.00014768,2]
[382836896,1756752660022,-1500.0,0.00014768,2]
[382836899,1756752660032,-1500.0,0.00014768,2]
[382836901,1756752660042,-500.0,0.00014773,2]
[382836903,1756752660052,-500.0,0.00014773,2]
[382836905,1756752660063,-500.0,0.00014773,2]
[382836907,1756752660072,-500.0,0.00014773,2]
[382836909,1756752660082,-500.0,0.00014773,2]
[382836911,1756752660092,-500.0,0.00014773,2]
[382836913,1756752660101,-500.0,0.00014773,2]
[382836915,1756752660111,-500.0,0.00014773,2]
[382836916,1756752660121,-500.0,0.00014773,2]
[382836918,1756752660131,-500.0,0.00014773,2]
[382836920,1756752660141,-500.0,0.00014773,2]
[382836922,1756752660150,-249.93572669,0.00014773,2]
[382836924,1756752660159,-1000.0,0.0001479,2]
[382836926,1756752660169,-198.0,0.00014794,2]
[382836928,1756752660179,-198.0,0.00014794,2]
[382836930,1756752660188,-198.69974264,0.00014794,2]
[382836932,1756752660198,-198.0,0.00014794,2]
[382836934,1756752660208,-198.0,0.00014794,2]
[382836936,1756752660218,-155.79480583,0.00014794,2]
[382836938,1756752660227,-151.0,0.00014794,2]
[382836940,1756752660238,-151.0,0.00014794,2]
[382836942,1756752660247,-151.0,0.00014794,2]
[382836944,1756752660257,-151.0,0.00014794,2]
[382836946,1756752660267,-151.0,0.00014794,2]
[382836948,1756752660276,-690.0,0.00014794,2]
[382836950,1756752660287,-151.0,0.00014794,2]
[382836952,1756752660296,-151.0,0.00014794,2]
[382836954,1756752660306,-500.0,0.00014794,2]
[382836956,1756752660315,-559.22676863,0.00014794,2]
[382836958,1756752660324,-480.0,0.00014794,2]
[382836960,1756752660334,-509.36,0.00014794,2]
[382836962,1756752660343,-1417.58,0.00014794,2]
[382836964,1756752660352,-480.0,0.00014794,2]
[382836966,1756752660362,-480.0,0.00014794,2]
[382836968,1756752660371,-480.0,0.00014794,2]
[382836970,1756752660381,-480.0,0.00014794,2]
[382836972,1756752660391,-480.0,0.00014794,2]
[382836974,1756752660400,-480.0,0.00014794,2]
[382836976,1756752660409,-556.68,0.00014794,2]
[382836978,1756752660420,-480.0,0.00014794,2]
[382836980,1756752660429,-480.0,0.00014794,2]
[382836982,1756752660439,-624.23,0.00014794,2]
[382836984,1756752660448,-505.72,0.00014794,2]
[382836986,1756752660458,-480.0,0.00014794,2]
[382836988,1756752660467,-480.34,0.00014794,2]
[382836990,1756752660477,-480.0,0.00014794,2]
[382836992,1756752660486,-480.0,0.00014794,2]
[382836993,1756752660495,-483.6,0.00014794,2]
[382836995,1756752660504,-562.48,0.00014794,2]
[382836997,1756752660513,-613.13,0.00014794,2]